Workbook

Sheet 7-11
A1: СОГЛАСОВАНО | O1: УТВЕРЖДЕНО
A2: Директор МБОУ "СОШ №2" г.Мензелинска | O2: ООО "КРЕПЫШ"
A3: ________________Габдуллин Н.С. | O3: _______________________Ефремов В.Ю.
A6: Меню для организации питания детей возрасте от 7 до 11 лет в образовательных учреждениях Мензелинского района РТ на 1 полугодие 2022-2023 учебный год.
A8: 1 день, 1 неделя
A9: № рецептуры | B9: Прием пищи, наименование блюда | C9: Масса | D9: Пищевые вещества | G9: Энергетическая ценность | H9: Витамины | M9: Минеральные вещества
D10: Белки | E10: Жиры | F10: Углеводы | H10: B1 | I10: B2 | J10: A | K10: D | L10: C | M10: Na | N10: K | O10: Ca | P10: Mg | Q10: P | R10: Fe | S10: I | T10: Se | U10: F
C11: г | D11: г | E11: г | F11: г | G11: ккал | H11: мг | I11: мг | J11: мкг рет.экв | K11: мкг | L11: мг | M11: мг | N11: мг | O11: мг | P11: мг | Q11: мг | R11: мг | S11: мкг | T11: мкг | U11: мкг
B12: Понедельник, 1 неделя
B13: Горячий завтрак | C13: 7-11
A14: 54-11з-2020 | B14: Салат из моркови с яблоками с растительным маслом | C14: 60 | D14: 0.5 | E14: 6.1 | F14: 4.3 | G14: 74.3 | H14: 0.03 | I14: 0.03 | J14: 732.9 | K14: 0 | L14: 3.63 | M14: 89.79 | N14: 123.26 | O14: 13.5 | P14: 15.57 | Q14: 22.38 | R14: 0.66 | S14: 10.19 | T14: 0.09 | U14: 21.57
A15: 54-4г-2020 | B15: Каша гречневая рассыпчатая | C15: 150 | D15: 8.2 | E15: 6.3 | F15: 35.9 | G15: 233.7 | H15: 0.21 | I15: 0.12 | J15: 19.19 | K15: 0.09 | L15: 0 | M15: 149.45 | N15: 219.36 | O15: 46.62 | P15: 120.16 | Q15: 180.99 | R15: 4.05 | S15: 22.28 | T15: 3.52 | U15: 16.06
A16: ном.рец №174 | B16: Тефтели мясные из говядины, полуфабрикат в соусе | C16: 75/30 | D16: 10.81 | E16: 10.4 | F16: 8.42 | G16: 168.9 | H16: 0 | I16: 0 | J16: 38.45 | K16: 0.01 | L16: 1.79 | M16: 3 | N16: 43 | O16: 45.75 | P16: 35.13 | Q16: 109 | R16: 1.6 | S16: 0 | T16: 0 | U16: 0
A17: 54-4гн-2020 | B17: Чай с молоком и сахаром | C17: 200 | D17: 1.6 | E17: 1.1 | F17: 8.6 | G17: 50.9 | H17: 0.01 | I17: 0.07 | J17: 6.9 | K17: 0 | L17: 0.3 | M17: 19.68 | N17: 81.35 | O17: 103.48 | P17: 9.92 | Q17: 46.33 | R17: 0.78 | S17: 4.5 | T17: 0.88 | U17: 10
A18: Пром. | B18: Хлеб пшеничный | C18: 30 | D18: 2.3 | E18: 0.2 | F18: 14.8 | G18: 70.3 | H18: 0.03 | I18: 0.01 | J18: 0 | K18: 0 | L18: 0 | M18: 149.7 | N18: 27.9 | O18: 6 | P18: 4.2 | Q18: 19.5 | R18: 0.33 | S18: 0.96 | T18: 1.8 | U18: 4.35
A19: Пром. | B19: Хлеб ржаной | C19: 20 | D19: 1.3 | E19: 0.2 | F19: 6.7 | G19: 34.2 | H19: 0.04 | I19: 0.02 | J19: 0 | K19: 0 | L19: 0 | M19: 122 | N19: 49 | O19: 7 | P19: 9.4 | Q19: 31.6 | R19: 0.78 | S19: 0 | T19: 6.18 | U19: 0
B20: Итого за Завтрак | C20: 565 | D20: =SUM(D14:D19) -> 24.71 | E20: 24.3 | F20: 78.72 | G20: 632.3 | H20: 0.32 | I20: 0.25 | J20: 797.44 | K20: 0.1 | L20: 5.72 | M20: 533.62 | N20: 543.87 | O20: 222.35 | P20: 194.38 | Q20: 409.8 | R20: 8.2 | S20: 37.93 | T20: 12.47 | U20: 51.98
B21: Итого за день | C21: =C20 -> 565 | D21: =D20 -> 24.71 | E21: 24.3 | F21: 78.72 | G21: 632.3 | H21: 0.32 | I21: 0.25 | J21: 797.44 | K21: 0.1 | L21: 5.72 | M21: 533.62 | N21: 543.87 | O21: 222.35 | P21: 194.38 | Q21: 409.8 | R21: 8.2 | S21: 37.93 | T21: 12.47 | U21: 51.98
A23: 2 день, 1 неделя
A24: № рецептуры | B24: Прием пищи, наименование блюда | C24: Масса | D24: Пищевые вещества | G24: Энергетическая ценность | H24: Витамины | M24: Минеральные вещества
D25: Белки | E25: Жиры | F25: Углеводы | H25: B1 | I25: B2 | J25: A | K25: D | L25: C | M25: Na | N25: K | O25: Ca | P25: Mg | Q25: P | R25: Fe | S25: I | T25: Se | U25: F
C26: г | D26: г | E26: г | F26: г | G26: ккал | H26: мг | I26: мг | J26: мкг рет.экв | K26: мкг | L26: мг | M26: мг | N26: мг | O26: мг | P26: мг | Q26: мг | R26: мг | S26: мкг | T26: мкг | U26: мкг
B27: Вторник, 1 неделя
B28: Горячий завтрак | C28: 7-11
A29: 54-7з-2020 | B29: Салат из белокочанной капусты с растительным маслом | C29: 60 | D29: 1.5 | E29: 6.1 | F29: 6.2 | G29: 85.8 | H29: 0.03 | I29: 0.04 | J29: 122.25 | K29: 0 | L29: 34.78 | M29: 88.69 | N29: 247.73 | O29: 40.39 | P29: 15.18 | Q29: 30.31 | R29: 0.55 | S29: 10.73 | T29: 0.26 | U29: 12.66
A30: 100 | B30: Суп картофельный с вермишелью | C30: 200 | D30: 2.3 | E30: 2.2 | F30: 16.2 | G30: 94.4 | H30: 0.1 | I30: 0 | J30: 0.2 | K30: 0 | L30: 5.3 | M30: 0 | N30: 0 | O30: 19.2 | P30: 18.7 | Q30: 46.1 | R30: 0.9 | S30: 0 | T30: 0 | U30: 0
A31: 54-21гн-2020 | B31: Какао с молоком | C31: 200 | D31: 4.7 | E31: 3.5 | F31: 12.5 | G31: 100.4 | H31: 0.04 | I31: 0.16 | J31: 17.25 | K31: 0 | L31: 0.68 | M31: 49.95 | N31: 220.33 | O31: 167.68 | P31: 34.32 | Q31: 130.28 | R31: 1.09 | S31: 11.7 | T31: 2.29 | U31: 38.25
A32: Пром. | B32: Хлеб пшеничный | C32: 30 | D32: 2.3 | E32: 0.2 | F32: 14.8 | G32: 70.3 | H32: 0.03 | I32: 0.01 | J32: 0 | K32: 0 | L32: 0 | M32: 149.7 | N32: 27.9 | O32: 6 | P32: 4.2 | Q32: 19.5 | R32: 0.33 | S32: 0.96 | T32: 1.8 | U32: 4.35
A33: Пром. | B33: Хлеб ржаной | C33: 20 | D33: 1.3 | E33: 0.2 | F33: 6.7 | G33: 34.2 | H33: 0.04 | I33: 0.02 | J33: 0 | K33: 0 | L33: 0 | M33: 122 | N33: 49 | O33: 7 | P33: 9.4 | Q33: 31.6 | R33: 0.78 | S33: 0 | T33: 6.18 | U33: 0
A34: Пром. | B34: Яблоко | C34: 100 | D34: 0.6 | E34: 0.6 | F34: 14.7 | G34: 66.6 | H34: 0.04 | I34: 0.03 | J34: 7.5 | K34: 0 | L34: 15 | M34: 39 | N34: 417 | O34: 24 | P34: 14 | Q34: 17 | R34: 3.3 | S34: 3 | T34: 0.4 | U34: 12
B35: Итого за Завтрак | C35: =SUM(C29:C34) -> 610 | D35: =SUM(D29:D34) -> 12.7 | E35: 12.8 | F35: 71.1 | G35: 451.7 | H35: 0.28 | I35: 0.26 | J35: 147.2 | K35: 0 | L35: 55.76 | M35: 449.34 | N35: 961.96 | O35: 264.27 | P35: 95.8 | Q35: 274.79 | R35: 6.95 | S35: 26.39 | T35: 10.93 | U35: 67.26
B36: Итого за день | C36: =C35 -> 610 | D36: =D35 -> 12.7 | E36: 12.8 | F36: 71.1 | G36: 451.7 | H36: 0.28 | I36: 0.26 | J36: 147.2 | K36: 0 | L36: 55.76 | M36: 449.34 | N36: 961.96 | O36: 264.27 | P36: 95.8 | Q36: 274.79 | R36: 6.95 | S36: 26.39 | T36: 10.93 | U36: 67.26
A38: 3 день, 1 неделя
A39: № рецептуры | B39: Прием пищи, наименование блюда | C39: Масса | D39: Пищевые вещества | G39: Энергетическая ценность | H39: Витамины | M39: Минеральные вещества
D40: Белки | E40: Жиры | F40: Углеводы | H40: B1 | I40: B2 | J40: A | K40: D | L40: C | M40: Na | N40: K | O40: Ca | P40: Mg | Q40: P | R40: Fe | S40: I | T40: Se | U40: F
C41: г | D41: г | E41: г | F41: г | G41: ккал | H41: мг | I41: мг | J41: мкг рет.экв | K41: мкг | L41: мг | M41: мг | N41: мг | O41: мг | P41: мг | Q41: мг | R41: мг | S41: мкг | T41: мкг | U41: мкг
B42: Среда, 1 неделя
B43: Горячий завтрак | C43: 7-11
A44: 54-13з-2020 | B44: Салат из свеклы отварной с растительным маслом | C44: 60 | D44: 0.8 | E44: 2.7 | F44: 4.6 | G44: 45.6 | H44: 0.01 | I44: 0.02 | J44: 0.68 | K44: 0 | L44: 2.28 | M44: 78.77 | N44: 136.27 | O44: 19.21 | P44: 10.95 | Q44: 21.51 | R44: 0.7 | S44: 11.99 | T44: 0.35 | U44: 11.4
A45: 54-1г-2020 | B45: Макароны отварные | C45: 150 | D45: 5.3 | E45: 4.9 | F45: 32.8 | G45: 196.8 | H45: 0.06 | I45: 0.02 | J45: 18.36 | K45: 0.09 | L45: 0 | M45: 149.04 | N45: 53.8 | O45: 105.83 | P45: 7.19 | Q45: 40.7 | R45: 0.73 | S45: 20.77 | T45: 0.06 | U45: 11.92
A46: №243 | B46: Сосиски говяжьи отварные, п/ф (2 шт) | C46: 100 | D46: 13.2 | E46: 22.84 | F46: 1.8 | G46: 247.15 | H46: 0 | I46: 0 | J46: 0.08 | K46: 0.01 | L46: 0 | M46: 0 | N46: 0 | O46: 7.44 | P46: 15.51 | Q46: 137.39 | R46: 1.74 | S46: 0 | T46: 0 | U46: 0
A47: 54-3гн-2020 | B47: Чай с лимоном и сахаром | C47: 207 | D47: 0.2 | E47: 0.1 | F47: 6.6 | G47: 27.9 | H47: 0 | I47: 0.01 | J47: 0.38 | K47: 0 | L47: 1.16 | M47: 1.26 | N47: 30.23 | O47: 67 | P47: 4.56 | Q47: 8.52 | R47: 0.77 | S47: 0.01 | T47: 0.02 | U47: 0.7
A48: Пром. | B48: Хлеб ржаной | C48: 20 | D48: 1.3 | E48: 0.2 | F48: 6.7 | G48: 34.2 | H48: 0.04 | I48: 0.02 | J48: 0 | K48: 0 | L48: 0 | M48: 122 | N48: 49 | O48: 7 | P48: 9.4 | Q48: 31.6 | R48: 0.78 | S48: 0 | T48: 6.18 | U48: 0
A49: Пром. | B49: Хлеб пшеничный | C49: 30 | D49: 2.3 | E49: 0.2 | F49: 14.8 | G49: 70.3 | H49: 0.03 | I49: 0.01 | J49: 0 | K49: 0 | L49: 0 | M49: 149.7 | N49: 27.9 | O49: 6 | P49: 4.2 | Q49: 19.5 | R49: 0.33 | S49: 0.96 | T49: 1.8 | U49: 4.35
B50: Итого за Завтрак | C50: =SUM(C44:C49) -> 567 | D50: =SUM(D44:D49) -> 23.1 | E50: =SUM(E44:E49) -> 30.94 | F50: 67.3 | G50: 621.95 | H50: 0.14 | I50: 0.08 | J50: 19.5 | K50: 0.1 | L50: 3.44 | M50: 500.77 | N50: 297.2 | O50: 212.48 | P50: 51.81 | Q50: 259.22 | R50: 5.05 | S50: 33.73 | T50: 8.41 | U50: 28.37
B51: Итого за день | C51: =C50 -> 567 | D51: =D50 -> 23.1 | E51: =E50 -> 30.94 | F51: 67.3 | G51: 621.95 | H51: 0.14 | I51: 0.08 | J51: 19.5 | K51: 0.1 | L51: 3.44 | M51: 500.77 | N51: 297.2 | O51: 212.48 | P51: 51.81 | Q51: 259.22 | R51: 5.05 | S51: 33.73 | T51: 8.41 | U51: 28.37
A53: 4 день, 1 неделя
A54: № рецептуры | B54: Прием пищи, наименование блюда | C54: Масса | D54: Пищевые вещества | G54: Энергетическая ценность | H54: Витамины | M54: Минеральные вещества
D55: Белки | E55: Жиры | F55: Углеводы | H55: B1 | I55: B2 | J55: A | K55: D | L55: C | M55: Na | N55: K | O55: Ca | P55: Mg | Q55: P | R55: Fe | S55: I | T55: Se | U55: F
C56: г | D56: г | E56: г | F56: г | G56: ккал | H56: мг | I56: мг | J56: мкг рет.экв | K56: мкг | L56: мг | M56: мг | N56: мг | O56: мг | P56: мг | Q56: мг | R56: мг | S56: мкг | T56: мкг | U56: мкг
B57: Четверг, 1 неделя
B58: Горячий завтрак | C58: 7-11
A59: 54-9з-2020 | B59: Салат из белокочанной капусты с морковью и яблоками с растительным маслом | C59: 60 | D59: 0.8 | E59: 6.1 | F59: 3.6 | G59: 72.5 | H59: 0.02 | I59: 0.02 | J59: 241.63 | K59: 0 | L59: 17.32 | M59: 87.51 | N59: 160.14 | O59: 23.5 | P59: 11.17 | Q59: 18.8 | R59: 0.56 | S59: 9.87 | T59: 0.15 | U59: 10.98
A60: 54-11г-2020 | B60: Картофельное пюре | C60: 150 | D60: 3.1 | E60: 5.3 | F60: 19.8 | G60: 139.4 | H60: 0.12 | I60: 0.11 | J60: 23.8 | K60: 0.09 | L60: 10.2 | M60: 161.78 | N60: 624.83 | O60: 39.49 | P60: 28.23 | Q60: 84.47 | R60: 1.03 | S60: 28.46 | T60: 0.78 | U60: 42.79
A61: № рец. 290 | B61: Птица тушеная в соусе | C61: 50/50 | D61: 13.8 | E61: 14.8 | F61: 3.9 | G61: 211 | H61: 0.1 | I61: 0 | J61: 0 | K61: 0 | L61: 1.5 | M61: 0 | N61: 0 | O61: 26.4 | P61: 16.6 | Q61: 115.3 | R61: 0.9 | S61: 0 | T61: 0 | U61: 0
A62: 54-2гн-2020 | B62: Кофейный напиток с молоком | C62: 200 | D62: 3.9 | E62: 2.9 | F62: 11.2 | G62: 86 | H62: 0.03 | I62: 0.13 | J62: 13.29 | K62: 0 | L62: 0.52 | M62: 38.55 | N62: 183.98 | O62: 148.32 | P62: 30.67 | Q62: 106.79 | R62: 1.06 | S62: 9 | T62: 1.76 | U62: 20
A63: Пром. | B63: Хлеб ржаной | C63: 20 | D63: 1.3 | E63: 0.2 | F63: 6.7 | G63: 34.2 | H63: 0.04 | I63: 0.02 | J63: 0 | K63: 0 | L63: 0 | M63: 122 | N63: 49 | O63: 7 | P63: 9.4 | Q63: 31.6 | R63: 0.78 | S63: 0 | T63: 6.18 | U63: 0
A64: Пром. | B64: Хлеб пшеничный | C64: 30 | D64: 2.3 | E64: 0.2 | F64: 14.8 | G64: 70.3 | H64: 0.03 | I64: 0.01 | J64: 0 | K64: 0 | L64: 0 | M64: 149.7 | N64: 27.9 | O64: 6 | P64: 4.2 | Q64: 19.5 | R64: 0.33 | S64: 0.96 | T64: 1.8 | U64: 4.35
B65: Итого за Завтрак | C65: 560 | D65: =SUM(D59:D64) -> 25.2 | E65: 29.5 | F65: 60 | G65: 613.4 | H65: 0.34 | I65: 0.29 | J65: 278.72 | K65: 0.09 | L65: 29.54 | M65: 559.54 | N65: 1045.85 | O65: 250.71 | P65: 100.27 | Q65: 376.46 | R65: 4.66 | S65: 48.29 | T65: 10.67 | U65: 78.12
B66: Итого за день | C66: 560 | D66: =D65 -> 25.2 | E66: 29.5 | F66: 60 | G66: 613.4 | H66: 0.34 | I66: 0.29 | J66: 278.72 | K66: 0.09 | L66: 29.54 | M66: 559.54 | N66: 1045.85 | O66: 250.71 | P66: 100.27 | Q66: 376.46 | R66: 4.66 | S66: 48.29 | T66: 10.67 | U66: 78.12
A68: 5 день, 1 неделя
A69: № рецептуры | B69: Прием пищи, наименование блюда | C69: Масса | D69: Пищевые вещества | G69: Энергетическая ценность | H69: Витамины | M69: Минеральные вещества
D70: Белки | E70: Жиры | F70: Углеводы | H70: B1 | I70: B2 | J70: A | K70: D | L70: C | M70: Na | N70: K | O70: Ca | P70: Mg | Q70: P | R70: Fe | S70: I | T70: Se | U70: F
C71: г | D71: г | E71: г | F71: г | G71: ккал | H71: мг | I71: мг | J71: мкг рет.экв | K71: мкг | L71: мг | M71: мг | N71: мг | O71: мг | P71: мг | Q71: мг | R71: мг | S71: мкг | T71: мкг | U71: мкг
B72: Пятница, 1 неделя
B73: Горячий завтрак | C73: 7-11
A74: 54-11з-2020 | B74: Салат из моркови с яблоками с растительным маслом | C74: 60 | D74: 0.5 | E74: 6.1 | F74: 4.3 | G74: 74.3 | H74: 0.03 | I74: 0.03 | J74: 732.9 | K74: 0 | L74: 3.63 | M74: 89.79 | N74: 123.26 | O74: 13.5 | P74: 15.57 | Q74: 22.38 | R74: 0.66 | S74: 10.19 | T74: 0.09 | U74: 21.57
A75: 54-6г-2020 | B75: Плов из говядины | C75: 160/40 | D75: 15.32 | E75: 14.73 | F75: 38.58 | G75: 348.3 | H75: 0.07 | I75: 0.12 | J75: 261.6 | K75: 0.1 | L75: 0.08 | M75: 276 | N75: 267 | O75: 117 | P75: 44 | Q75: 194 | R75: 2.2 | S75: 38.67 | T75: 7.3 | U75: 81.72
A76: 54-4гн-2020 | B76: Компот из кураги | C76: 200 | D76: 0.98 | E76: 0.05 | F76: 15.64 | G76: 66.9 | H76: 0.01 | I76: 0.03 | J76: 69.96 | K76: 0 | L76: 0 | M76: 3 | N76: 285 | O76: 90 | P76: 18 | Q76: 25 | R76: 0.6 | S76: 0 | T76: 0 | U76: 0
A77: Пром. | B77: Хлеб ржаной | C77: 20 | D77: 1.3 | E77: 0.2 | F77: 6.7 | G77: 34.2 | H77: 0.04 | I77: 0.02 | J77: 0 | K77: 0 | L77: 0 | M77: 122 | N77: 49 | O77: 7 | P77: 9.4 | Q77: 31.6 | R77: 0.78 | S77: 0 | T77: 6.18 | U77: 0
A78: Пром. | B78: Хлеб пшеничный | C78: 30 | D78: 2.3 | E78: 0.2 | F78: 14.8 | G78: 70.3 | H78: 0.03 | I78: 0.01 | J78: 0 | K78: 0 | L78: 0 | M78: 149.7 | N78: 27.9 | O78: 6 | P78: 4.2 | Q78: 19.5 | R78: 0.33 | S78: 0.96 | T78: 1.8 | U78: 4.35
B79: Итого за Завтрак | C79: 510 | D79: =SUM(D74:D78) -> 20.4 | E79: =SUM(E74:E78) -> 21.28 | F79: 80.02 | G79: 594 | H79: 0.18 | I79: 0.21 | J79: 1064.46 | K79: 0.1 | L79: 3.71 | M79: 640.49 | N79: 752.16 | O79: 233.5 | P79: 91.17 | Q79: 292.48 | R79: 4.57 | S79: 49.82 | T79: 15.37 | U79: 107.64
B80: Итого за день | C80: 510 | D80: =D79 -> 20.4 | E80: =E79 -> 21.28 | F80: 80.02 | G80: 594 | H80: 0.18 | I80: 0.21 | J80: 1064.46 | K80: 0.1 | L80: 3.71 | M80: 640.49 | N80: 752.16 | O80: 233.5 | P80: 91.17 | Q80: 292.48 | R80: 4.57 | S80: 49.82 | T80: 15.37 | U80: 107.64
A82: 6 день, 1 неделя
A83: № рецептуры | B83: Прием пищи, наименование блюда | C83: Масса | D83: Пищевые вещества | G83: Энергетическая ценность | H83: Витамины | M83: Минеральные вещества
D84: Белки | E84: Жиры | F84: Углеводы | H84: B1 | I84: B2 | J84: A | K84: D | L84: C | M84: Na | N84: K | O84: Ca | P84: Mg | Q84: P | R84: Fe | S84: I | T84: Se | U84: F
C85: г | D85: г | E85: г | F85: г | G85: ккал | H85: мг | I85: мг | J85: мкг рет.экв | K85: мкг | L85: мг | M85: мг | N85: мг | O85: мг | P85: мг | Q85: мг | R85: мг | S85: мкг | T85: мкг | U85: мкг
B86: Суббота, 1 неделя
B87: Горячий завтрак | C87: 7-11
A88: 54-16з-2020 | B88: Винегрет с растительным маслом | C88: 60 | D88: 0.7 | E88: 5.4 | F88: 4 | G88: 67.1 | H88: 0.02 | I88: 0.02 | J88: 72.89 | K88: 0 | L88: 2.26 | M88: 200.99 | N88: 127.85 | O88: 12.1 | P88: 9.66 | Q88: 21.4 | R88: 0.41 | S88: 7.86 | T88: 0.13 | U88: 11.85
A89: 54-22м-2020 | B89: Рагу из курицы | C89: 140/60 | D89: 21 | E89: 7 | F89: 17.5 | G89: 217.3 | H89: 0.14 | I89: 0.11 | J89: 259.68 | K89: 0 | L89: 11.25 | M89: 281.38 | N89: 738.57 | O89: 32.19 | P89: 93.35 | Q89: 192.51 | R89: 2.13 | S89: 42.97 | T89: 17.04 | U89: 156.36
A90: 54-23гн-2020 | B90: Кофейный напиток с молоком | C90: 200 | D90: 3.9 | E90: 2.9 | F90: 11.2 | G90: 86 | H90: 0.03 | I90: 0.13 | J90: 13.29 | K90: 0 | L90: 0.52 | M90: 38.55 | N90: 183.98 | O90: 148.32 | P90: 30.67 | Q90: 106.79 | R90: 1.06 | S90: 9 | T90: 1.76 | U90: 20
A91: Пром. | B91: Хлеб пшеничный | C91: 30 | D91: 2.3 | E91: 0.2 | F91: 14.8 | G91: 70.3 | H91: 0.03 | I91: 0.01 | J91: 0 | K91: 0 | L91: 0 | M91: 149.7 | N91: 27.9 | O91: 6 | P91: 4.2 | Q91: 19.5 | R91: 0.33 | S91: 0.96 | T91: 1.8 | U91: 4.35
A92: Пром. | B92: Хлеб ржаной | C92: 20 | D92: 1.3 | E92: 0.2 | F92: 6.7 | G92: 34.2 | H92: 0.04 | I92: 0.02 | J92: 0 | K92: 0 | L92: 0 | M92: 122 | N92: 49 | O92: 7 | P92: 9.4 | Q92: 31.6 | R92: 0.78 | S92: 0 | T92: 6.18 | U92: 0
B93: Итого за Завтрак | C93: 510 | D93: =SUM(D88:D92) -> 29.2 | E93: =SUM(E88:E92) -> 15.7 | F93: 54.2 | G93: 474.9 | H93: 0.26 | I93: 0.29 | J93: 345.86 | K93: 0 | L93: 14.03 | M93: 792.62 | N93: 1127.3 | O93: 205.61 | P93: 147.28 | Q93: 371.8 | R93: 4.71 | S93: 60.79 | T93: 26.91 | U93: 192.56
B94: Итого за день | C94: 510 | D94: =D93 -> 29.2 | E94: =E93 -> 15.7 | F94: 54.2 | G94: 474.9 | H94: 0.26 | I94: 0.29 | J94: 345.86 | K94: 0 | L94: 14.03 | M94: 792.62 | N94: 1127.3 | O94: 205.61 | P94: 147.28 | Q94: 371.8 | R94: 4.71 | S94: 60.79 | T94: 26.91 | U94: 192.56
A96: 7 день, 2 неделя
A97: № рецептуры | B97: Прием пищи, наименование блюда | C97: Масса | D97: Пищевые вещества | G97: Энергетическая ценность | H97: Витамины | M97: Минеральные вещества
D98: Белки | E98: Жиры | F98: Углеводы | H98: B1 | I98: B2 | J98: A | K98: D | L98: C | M98: Na | N98: K | O98: Ca | P98: Mg | Q98: P | R98: Fe | S98: I | T98: Se | U98: F
C99: г | D99: г | E99: г | F99: г | G99: ккал | H99: мг | I99: мг | J99: мкг рет.экв | K99: мкг | L99: мг | M99: мг | N99: мг | O99: мг | P99: мг | Q99: мг | R99: мг | S99: мкг | T99: мкг | U99: мкг
B100: Понедельник, 2 неделя
B101: Горячий завтрак | C101: 7-11
A102: 54-11з-2020 | B102: Салат из моркови с яблоками с растительным маслом | C102: 60 | D102: 0.5 | E102: 6.1 | F102: 4.3 | G102: 74.3 | H102: 0.03 | I102: 0.03 | J102: 732.9 | K102: 0 | L102: 3.63 | M102: 89.79 | N102: 123.26 | O102: 13.5 | P102: 15.57 | Q102: 22.38 | R102: 0.66 | S102: 10.19 | T102: 0.09 | U102: 21.57
A103: 62 | B103: Борщ | C103: 200 | D103: 2.6 | E103: 4.5 | F103: 13.1 | G103: 107 | H103: 0.1 | I103: 0 | J103: 0.2 | K103: 0 | L103: 10.7 | M103: 0 | N103: 0 | O103: 43.5 | P103: 26.9 | Q103: 57.4 | R103: 1.4 | S103: 0 | T103: 0 | U103: 0
A104: 54-2гн-2020 | B104: Чай с сахаром | C104: 200 | D104: 0.2 | E104: 0 | F104: 6.4 | G104: 26.8 | H104: 0 | I104: 0.01 | J104: 0.3 | K104: 0 | L104: 0.04 | M104: 0.68 | N104: 20.76 | O104: 66.08 | P104: 3.83 | Q104: 7.18 | R104: 0.73 | S104: 0 | T104: 0 | U104: 0
A105: Пром. | B105: Хлеб пшеничный | C105: 30 | D105: 2.3 | E105: 0.2 | F105: 14.8 | G105: 70.3 | H105: 0.03 | I105: 0.01 | J105: 0 | K105: 0 | L105: 0 | M105: 149.7 | N105: 27.9 | O105: 6 | P105: 4.2 | Q105: 19.5 | R105: 0.33 | S105: 0.96 | T105: 1.8 | U105: 4.35
A106: Пром. | B106: Хлеб ржаной | C106: 20 | D106: 1.3 | E106: 0.2 | F106: 6.7 | G106: 34.2 | H106: 0.04 | I106: 0.02 | J106: 0 | K106: 0 | L106: 0 | M106: 122 | N106: 49 | O106: 7 | P106: 9.4 | Q106: 31.6 | R106: 0.78 | S106: 0 | T106: 6.18 | U106: 0
B107: Итого за Завтрак | C107: =SUM(C102:C106) -> 510 | D107: =SUM(D102:D106) -> 6.9 | E107: =SUM(E102:E106) -> 11 | F107: 45.3 | G107: 312.6 | H107: 0.2 | I107: 0.07 | J107: 733.4 | K107: 0 | L107: 14.37 | M107: 362.17 | N107: 220.92 | O107: 136.08 | P107: 59.9 | Q107: 138.06 | R107: 3.9 | S107: 11.15 | T107: 8.07 | U107: 25.92
B108: Итого за день | C108: =C107 -> 510 | D108: =D107 -> 6.9 | E108: =E107 -> 11 | F108: 45.3 | G108: 312.6 | H108: 0.2 | I108: 0.07 | J108: 733.4 | K108: 0 | L108: 14.37 | M108: 362.17 | N108: 220.92 | O108: 136.08 | P108: 59.9 | Q108: 138.06 | R108: 3.9 | S108: 11.15 | T108: 8.07 | U108: 25.92
A110: 8 день, 2 неделя
A111: № рецептуры | B111: Прием пищи, наименование блюда | C111: Масса | D111: Пищевые вещества | G111: Энергетическая ценность | H111: Витамины | M111: Минеральные вещества
D112: Белки | E112: Жиры | F112: Углеводы | H112: B1 | I112: B2 | J112: A | K112: D | L112: C | M112: Na | N112: K | O112: Ca | P112: Mg | Q112: P | R112: Fe | S112: I | T112: Se | U112: F
C113: г | D113: г | E113: г | F113: г | G113: ккал | H113: мг | I113: мг | J113: мкг рет.экв | K113: мкг | L113: мг | M113: мг | N113: мг | O113: мг | P113: мг | Q113: мг | R113: мг | S113: мкг | T113: мкг | U113: мкг
B114: Вторник, 2 неделя
B115: Горячий завтрак | C115: 7-11
A116: 54-13з-2020 | B116: Салат из свеклы отварной с растительным маслом | C116: 60 | D116: 0.8 | E116: 2.7 | F116: 4.6 | G116: 45.6 | H116: 0.01 | I116: 0.02 | J116: 0.68 | K116: 0 | L116: 2.28 | M116: 78.77 | N116: 136.27 | O116: 19.21 | P116: 10.95 | Q116: 21.51 | R116: 0.7 | S116: 11.99 | T116: 0.35 | U116: 11.4
A117: 54-12м-2020 | B117: Плов с курицей | C117: 150/50 | D117: 18.5 | E117: 7.4 | F117: 33.1 | G117: 273.2 | H117: 0.07 | I117: 0.06 | J117: 144.87 | K117: 0 | L117: 2.08 | M117: 272.9 | N117: 287.76 | O117: 72.64 | P117: 78.85 | Q117: 174.89 | R117: 1.53 | S117: 37.41 | T117: 19.63 | U117: 118.1
A118: 54-3гн-2020 | B118: Чай с лимоном и сахаром | C118: 207 | D118: 0.2 | E118: 0.1 | F118: 6.6 | G118: 27.9 | H118: 0 | I118: 0.01 | J118: 0.38 | K118: 0 | L118: 1.16 | M118: 1.26 | N118: 30.23 | O118: 67 | P118: 4.56 | Q118: 8.52 | R118: 0.77 | S118: 0.01 | T118: 0.02 | U118: 0.7
A119: Пром. | B119: Хлеб пшеничный | C119: 30 | D119: 2.3 | E119: 0.2 | F119: 14.8 | G119: 70.3 | H119: 0.03 | I119: 0.01 | J119: 0 | K119: 0 | L119: 0 | M119: 149.7 | N119: 27.9 | O119: 6 | P119: 4.2 | Q119: 19.5 | R119: 0.33 | S119: 0.96 | T119: 1.8 | U119: 4.35
A120: Пром. | B120: Хлеб ржаной | C120: 20 | D120: 1.3 | E120: 0.2 | F120: 6.7 | G120: 34.2 | H120: 0.04 | I120: 0.02 | J120: 0 | K120: 0 | L120: 0 | M120: 122 | N120: 49 | O120: 7 | P120: 9.4 | Q120: 31.6 | R120: 0.78 | S120: 0 | T120: 6.18 | U120: 0
B121: Итого за Завтрак | C121: 517 | D121: =SUM(D116:D120) -> 23.1 | E121: =SUM(E116:E120) -> 10.6 | F121: 65.8 | G121: 451.2 | H121: 0.15 | I121: 0.12 | J121: 145.93 | K121: 0 | L121: 5.52 | M121: 624.63 | N121: 531.16 | O121: 171.85 | P121: 107.96 | Q121: 256.02 | R121: 4.11 | S121: 50.37 | T121: 27.98 | U121: 134.55
B122: Итого за день | C122: 517 | D122: =D121 -> 23.1 | E122: =E121 -> 10.6 | F122: 65.8 | G122: 451.2 | H122: 0.15 | I122: 0.12 | J122: 145.93 | K122: 0 | L122: 5.52 | M122: 624.63 | N122: 531.16 | O122: 171.85 | P122: 107.96 | Q122: 256.02 | R122: 4.11 | S122: 50.37 | T122: 27.98 | U122: 134.55
A124: 9 день, 2 неделя
A125: № рецептуры | B125: Прием пищи, наименование блюда | C125: Масса | D125: Пищевые вещества | G125: Энергетическая ценность | H125: Витамины | M125: Минеральные вещества
D126: Белки | E126: Жиры | F126: Углеводы | H126: B1 | I126: B2 | J126: A | K126: D | L126: C | M126: Na | N126: K | O126: Ca | P126: Mg | Q126: P | R126: Fe | S126: I | T126: Se | U126: F
C127: г | D127: г | E127: г | F127: г | G127: ккал | H127: мг | I127: мг | J127: мкг рет.экв | K127: мкг | L127: мг | M127: мг | N127: мг | O127: мг | P127: мг | Q127: мг | R127: мг | S127: мкг | T127: мкг | U127: мкг
B128: Среда, 2 неделя
B129: Горячий завтрак | C129: 7-11
A130: 54-16з-2020 | B130: Винегрет с растительным маслом | C130: 60 | D130: 0.7 | E130: 5.4 | F130: 4 | G130: 67.1 | H130: 0.02 | I130: 0.02 | J130: 72.89 | K130: 0 | L130: 2.26 | M130: 200.99 | N130: 127.85 | O130: 12.1 | P130: 9.66 | Q130: 21.4 | R130: 0.41 | S130: 7.86 | T130: 0.13 | U130: 11.85
A131: 54-11г-2020 | B131: Картофельное пюре | C131: 150 | D131: 3.1 | E131: 5.3 | F131: 19.8 | G131: 139.4 | H131: 0.12 | I131: 0.11 | J131: 23.8 | K131: 0.09 | L131: 10.2 | M131: 161.78 | N131: 624.83 | O131: 39.49 | P131: 28.23 | Q131: 84.47 | R131: 1.03 | S131: 28.46 | T131: 0.78 | U131: 42.79
A132: 54-7р-2020 | B132: Рыба припущенная в молоко | C132: 70/30 | D132: 13.09 | E132: 7.52 | F132: 2.89 | G132: 131.6 | H132: 0.08 | I132: 0.11 | J132: 9.02 | K132: 0.16 | L132: 1 | M132: 111 | N132: 347 | O132: 68 | P132: 44 | Q132: 202 | R132: 0.7 | S132: 133.48 | T132: 11.9 | U132: 572.6
A133: 54-21гн-2020 | B133: Какао с молоком | C133: 200 | D133: 4.7 | E133: 3.5 | F133: 12.5 | G133: 100.4 | H133: 0.04 | I133: 0.16 | J133: 17.25 | K133: 0 | L133: 0.68 | M133: 49.95 | N133: 220.33 | O133: 167.68 | P133: 34.32 | Q133: 130.28 | R133: 1.09 | S133: 11.7 | T133: 2.29 | U133: 38.25
A134: Пром. | B134: Яблоко | C134: 100 | D134: 0.6 | E134: 0.6 | F134: 14.7 | G134: 66.6 | H134: 0.04 | I134: 0.03 | J134: 7.5 | K134: 0 | L134: 15 | M134: 39 | N134: 417 | O134: 24 | P134: 14 | Q134: 17 | R134: 3.3 | S134: 3 | T134: 0.4 | U134: 12
A135: Пром. | B135: Хлеб пшеничный | C135: 30 | D135: 2.3 | E135: 0.2 | F135: 14.8 | G135: 70.3 | H135: 0.03 | I135: 0.01 | J135: 0 | K135: 0 | L135: 0 | M135: 149.7 | N135: 27.9 | O135: 6 | P135: 4.2 | Q135: 19.5 | R135: 0.33 | S135: 0.96 | T135: 1.8 | U135: 4.35
A136: Пром. | B136: Хлеб ржаной | C136: 20 | D136: 1.3 | E136: 0.2 | F136: 6.7 | G136: 34.2 | H136: 0.04 | I136: 0.02 | J136: 0 | K136: 0 | L136: 0 | M136: 122 | N136: 49 | O136: 7 | P136: 9.4 | Q136: 31.6 | R136: 0.78 | S136: 0 | T136: 6.18 | U136: 0
B137: Итого за Завтрак | C137: 660 | D137: =SUM(D130:D136) -> 25.79 | E137: 22.72 | F137: 75.39 | G137: 609.6 | H137: 0.37 | I137: 0.46 | J137: 130.46 | K137: 0.25 | L137: 29.14 | M137: 834.42 | N137: 1813.91 | O137: 324.27 | P137: 143.81 | Q137: 506.25 | R137: 7.64 | S137: 185.46 | T137: 23.48 | U137: 681.84
B138: Итого за день | C138: =C137 -> 660 | D138: =D137 -> 25.79 | E138: 22.72 | F138: 75.39 | G138: 609.6 | H138: 0.37 | I138: 0.46 | J138: 130.46 | K138: 0.25 | L138: 29.14 | M138: 834.42 | N138: 1813.91 | O138: 324.27 | P138: 143.81 | Q138: 506.25 | R138: 7.64 | S138: 185.46 | T138: 23.48 | U138: 681.84
A140: 10 день, 2 неделя
A141: № рецептуры | B141: Прием пищи, наименование блюда | C141: Масса | D141: Пищевые вещества | G141: Энергетическая ценность | H141: Витамины | M141: Минеральные вещества
D142: Белки | E142: Жиры | F142: Углеводы | H142: B1 | I142: B2 | J142: A | K142: D | L142: C | M142: Na | N142: K | O142: Ca | P142: Mg | Q142: P | R142: Fe | S142: I | T142: Se | U142: F
C143: г | D143: г | E143: г | F143: г | G143: ккал | H143: мг | I143: мг | J143: мкг рет.экв | K143: мкг | L143: мг | M143: мг | N143: мг | O143: мг | P143: мг | Q143: мг | R143: мг | S143: мкг | T143: мкг | U143: мкг
B144: Четверг, 2 неделя
B145: Горячий завтрак | C145: 7-11
A146: 54-7з-2020 | B146: Салат из белокочанной капусты с растительным маслом | C146: 60 | D146: 1.5 | E146: 6.1 | F146: 6.2 | G146: 85.8 | H146: 0.03 | I146: 0.04 | J146: 122.25 | K146: 0 | L146: 34.78 | M146: 88.69 | N146: 247.73 | O146: 40.39 | P146: 15.18 | Q146: 30.31 | R146: 0.55 | S146: 10.73 | T146: 0.26 | U146: 12.66
A147: 54-6г-2020 | B147: Рис отварной | C147: 150 | D147: 3.6 | E147: 4.8 | F147: 36.4 | G147: 203.5 | H147: 0.03 | I147: 0.02 | J147: 18.36 | K147: 0.09 | L147: 0 | M147: 152.8 | N147: 46.55 | O147: 106.65 | P147: 23.59 | Q147: 72.57 | R147: 0.49 | S147: 20.76 | T147: 7.24 | U147: 27.19
A148: 54-2м-2020 | B148: Гуляш из говядины | C148: 60/40 | D148: 13.76 | E148: 13.91 | F148: 3.9 | G148: 195.8 | H148: 0.04 | I148: 0.12 | J148: 25.46 | K148: 0.07 | L148: 1 | M148: 122 | N148: 322 | O148: 55 | P148: 23 | Q148: 166 | R148: 2.5 | S148: 17.06 | T148: 0.4 | U148: 62.71
A149: 54-21гн-2020 | B149: Кофейный напиток с молоком | C149: 200 | D149: 3.9 | E149: 2.9 | F149: 11.2 | G149: 86 | H149: 0.03 | I149: 0.13 | J149: 13.29 | K149: 0 | L149: 0.52 | M149: 38.55 | N149: 183.98 | O149: 148.32 | P149: 30.67 | Q149: 106.79 | R149: 1.06 | S149: 9 | T149: 1.76 | U149: 20
A150: Пром. | B150: Хлеб пшеничный | C150: 30 | D150: 2.3 | E150: 0.2 | F150: 14.8 | G150: 70.3 | H150: 0.03 | I150: 0.01 | J150: 0 | K150: 0 | L150: 0 | M150: 149.7 | N150: 27.9 | O150: 6 | P150: 4.2 | Q150: 19.5 | R150: 0.33 | S150: 0.96 | T150: 1.8 | U150: 4.35
A151: Пром. | B151: Хлеб ржаной | C151: 20 | D151: 1.3 | E151: 0.2 | F151: 6.7 | G151: 34.2 | H151: 0.04 | I151: 0.02 | J151: 0 | K151: 0 | L151: 0 | M151: 122 | N151: 49 | O151: 7 | P151: 9.4 | Q151: 31.6 | R151: 0.78 | S151: 0 | T151: 6.18 | U151: 0
B152: Итого за Завтрак | C152: 560 | D152: =SUM(D146:D151) -> 26.36 | E152: 28.11 | F152: 79.2 | G152: 675.6 | H152: 0.2 | I152: 0.34 | J152: 179.36 | K152: 0.16 | L152: 36.3 | M152: 673.74 | N152: 877.16 | O152: 363.36 | P152: 106.04 | Q152: 426.77 | R152: 5.71 | S152: 58.51 | T152: 17.64 | U152: 126.91
B153: Итого за день | C153: =C152 -> 560 | D153: =D152 -> 26.36 | E153: 28.11 | F153: 79.2 | G153: 675.6 | H153: 0.2 | I153: 0.34 | J153: 179.36 | K153: 0.16 | L153: 36.3 | M153: 673.74 | N153: 877.16 | O153: 363.36 | P153: 106.04 | Q153: 426.77 | R153: 5.71 | S153: 58.51 | T153: 17.64 | U153: 126.91
A155: 11 день, 2 неделя
A156: № рецептуры | B156: Прием пищи, наименование блюда | C156: Масса | D156: Пищевые вещества | G156: Энергетическая ценность | H156: Витамины | M156: Минеральные вещества
D157: Белки | E157: Жиры | F157: Углеводы | H157: B1 | I157: B2 | J157: A | K157: D | L157: C | M157: Na | N157: K | O157: Ca | P157: Mg | Q157: P | R157: Fe | S157: I | T157: Se | U157: F
C158: г | D158: г | E158: г | F158: г | G158: ккал | H158: мг | I158: мг | J158: мкг рет.экв | K158: мкг | L158: мг | M158: мг | N158: мг | O158: мг | P158: мг | Q158: мг | R158: мг | S158: мкг | T158: мкг | U158: мкг
B159: Пятница, 2 неделя
B160: Горячий завтрак | C160: 7-11
A161: 54-13з-2020 | B161: Салат из свеклы отварной с растительным маслом | C161: 60 | D161: 0.8 | E161: 2.7 | F161: 4.6 | G161: 45.6 | H161: 0.01 | I161: 0.02 | J161: 0.68 | K161: 0 | L161: 2.28 | M161: 78.77 | N161: 136.27 | O161: 19.21 | P161: 10.95 | Q161: 21.51 | R161: 0.7 | S161: 11.99 | T161: 0.35 | U161: 11.4
A162: 54-1г-2020 | B162: Макароны отварные | C162: 150 | D162: 5.3 | E162: 4.9 | F162: 32.8 | G162: 196.8 | H162: 0.06 | I162: 0.02 | J162: 18.36 | K162: 0.09 | L162: 0 | M162: 149.04 | N162: 53.8 | O162: 105.83 | P162: 7.19 | Q162: 40.7 | R162: 0.73 | S162: 20.77 | T162: 0.06 | U162: 11.92
A163: ном.рец №174 | B163: Тефтели мясные из говядины, полуфабрикат в соусе | C163: 75/30 | D163: 10.81 | E163: 10.4 | F163: 8.42 | G163: 168.9 | H163: 0 | I163: 0 | J163: 38.45 | K163: 0.01 | L163: 1.79 | M163: 3 | N163: 43 | O163: 45.75 | P163: 35.13 | Q163: 109 | R163: 1.6 | S163: 0 | T163: 0 | U163: 0
A164: 54-4гн-2020 | B164: Компот из кураги | C164: 200 | D164: 0.98 | E164: 0.05 | F164: 15.64 | G164: 66.9 | H164: 0.01 | I164: 0.03 | J164: 69.96 | K164: 0 | L164: 0 | M164: 3 | N164: 285 | O164: 90 | P164: 18 | Q164: 25 | R164: 0.6 | S164: 0 | T164: 0 | U164: 0
A165: Пром. | B165: Хлеб ржаной | C165: 20 | D165: 1.3 | E165: 0.2 | F165: 6.7 | G165: 34.2 | H165: 0.04 | I165: 0.02 | J165: 0 | K165: 0 | L165: 0 | M165: 122 | N165: 49 | O165: 7 | P165: 9.4 | Q165: 31.6 | R165: 0.78 | S165: 0 | T165: 6.18 | U165: 0
A166: Пром. | B166: Хлеб пшеничный | C166: 30 | D166: 2.3 | E166: 0.2 | F166: 14.8 | G166: 70.3 | H166: 0.03 | I166: 0.01 | J166: 0 | K166: 0 | L166: 0 | M166: 149.7 | N166: 27.9 | O166: 6 | P166: 4.2 | Q166: 19.5 | R166: 0.33 | S166: 0.96 | T166: 1.8 | U166: 4.35
B167: Итого за Завтрак | C167: 565 | D167: =SUM(D161:D166) -> 21.49 | E167: 18.45 | F167: 82.96 | G167: 582.7 | H167: 0.15 | I167: 0.1 | J167: 127.45 | K167: 0.1 | L167: 4.07 | M167: 505.51 | N167: 594.97 | O167: 273.79 | P167: 84.87 | Q167: 247.31 | R167: 4.74 | S167: 33.72 | T167: 8.39 | U167: 27.67
B168: Итого за день | C168: 565 | D168: =D167 -> 21.49 | E168: 18.45 | F168: 82.96 | G168: 582.7 | H168: 0.15 | I168: 0.1 | J168: 127.45 | K168: 0.1 | L168: 4.07 | M168: 505.51 | N168: 594.97 | O168: 273.79 | P168: 84.87 | Q168: 247.31 | R168: 4.74 | S168: 33.72 | T168: 8.39 | U168: 27.67
A170: 12 день, 2 неделя
A171: № рецептуры | B171: Прием пищи, наименование блюда | C171: Масса | D171: Пищевые вещества | G171: Энергетическая ценность | H171: Витамины | M171: Минеральные вещества
D172: Белки | E172: Жиры | F172: Углеводы | H172: B1 | I172: B2 | J172: A | K172: D | L172: C | M172: Na | N172: K | O172: Ca | P172: Mg | Q172: P | R172: Fe | S172: I | T172: Se | U172: F
C173: г | D173: г | E173: г | F173: г | G173: ккал | H173: мг | I173: мг | J173: мкг рет.экв | K173: мкг | L173: мг | M173: мг | N173: мг | O173: мг | P173: мг | Q173: мг | R173: мг | S173: мкг | T173: мкг | U173: мкг
B174: Суббота, 2 неделя
B175: Горячий завтрак | C175: 7-11
A176: 54-9з-2020 | B176: Салат из белокочанной капусты с морковью, яблоками и растительным маслом | C176: 60 | D176: 0.8 | E176: 6.1 | F176: 3.6 | G176: 72.5 | H176: 0.02 | I176: 0.02 | J176: 241.63 | K176: 0 | L176: 17.32 | M176: 87.51 | N176: 160.14 | O176: 23.5 | P176: 11.17 | Q176: 18.8 | R176: 0.56 | S176: 9.87 | T176: 0.15 | U176: 10.98
A177: 54-1т-2020 | B177: Запеканка из творога | C177: 150 | D177: 29.66 | E177: 10.67 | F177: 21.65 | G177: 301.2 | H177: 0.06 | I177: 0.3 | J177: 51.11 | K177: 0.16 | L177: 0 | M177: 181 | N177: 159 | O177: 223 | P177: 32 | Q177: 291 | R177: 0.8 | S177: 28.82 | T177: 39 | U177: 49.63
A178: Пром. | B178: Молоко сгущенное с сахаром | C178: 20 | D178: 1.44 | E178: 1.7 | F178: 11.1 | G178: 65.5 | H178: 0.01 | I178: 0.06 | J178: 5.64 | K178: 0 | L178: 0 | M178: 20 | N178: 61 | O178: 54 | P178: 6 | Q178: 38 | R178: 0 | S178: 1.4 | T178: 0.5 | U178: 7
A179: 54-3гн-2020 | B179: Чай с лимоном и сахаром | C179: 207 | D179: 0.2 | E179: 0.1 | F179: 6.6 | G179: 27.9 | H179: 0 | I179: 0.01 | J179: 0.38 | K179: 0 | L179: 1.16 | M179: 1.26 | N179: 30.23 | O179: 67 | P179: 4.56 | Q179: 8.52 | R179: 0.77 | S179: 0.01 | T179: 0.02 | U179: 0.7
A180: Пром. | B180: Хлеб ржаной | C180: 20 | D180: 1.3 | E180: 0.2 | F180: 6.7 | G180: 34.2 | H180: 0.04 | I180: 0.02 | J180: 0 | K180: 0 | L180: 0 | M180: 122 | N180: 49 | O180: 7 | P180: 9.4 | Q180: 31.6 | R180: 0.78 | S180: 0 | T180: 6.18 | U180: 0
A181: Пром. | B181: Хлеб пшеничный | C181: 30 | D181: 2.3 | E181: 0.2 | F181: 14.8 | G181: 70.3 | H181: 0.03 | I181: 0.01 | J181: 0 | K181: 0 | L181: 0 | M181: 149.7 | N181: 27.9 | O181: 6 | P181: 4.2 | Q181: 19.5 | R181: 0.33 | S181: 0.96 | T181: 1.8 | U181: 4.35
B182: Итого за Завтрак | C182: =SUM(C176:C181) -> 487 | D182: =SUM(D176:D181) -> 35.7 | E182: =SUM(E176:E181) -> 18.97 | F182: 64.45 | G182: 571.6 | H182: 0.16 | I182: 0.42 | J182: 298.76 | K182: 0.16 | L182: 18.48 | M182: 561.47 | N182: 487.27 | O182: 380.5 | P182: 67.33 | Q182: 407.42 | R182: 3.24 | S182: 41.06 | T182: 47.65 | U182: 72.66
B183: Итого за день | C183: 487 | D183: =D182 -> 35.7 | E183: =E182 -> 18.97 | F183: 64.45 | G183: 571.6 | H183: 0.16 | I183: 0.42 | J183: 298.76 | K183: 0.16 | L183: 18.48 | M183: 561.47 | N183: 487.27 | O183: 380.5 | P183: 67.33 | Q183: 407.42 | R183: 3.24 | S183: 41.06 | T183: 47.65 | U183: 72.66
D185: ИТОГО ПО МЕНЮ
B187: ИТОГО | C187: Пищевые вещества | F187: Энергетическая ценность | G187: Витамины | L187: Минеральные вещества
C188: Белки | D188: Жиры | E188: Углеводы | G188: B1 | H188: B2 | I188: A | J188: D | K188: C | L188: Na | M188: K | N188: Ca | O188: Mg | P188: P | Q188: Fe | R188: I | S188: Se | T188: F
C189: г | D189: г | E189: г | F189: ккал | G189: мг | H189: мг | I189: мкг рет.экв | J189: мкг | K189: мг | L189: мг | M189: мг | N189: мг | O189: мг | P189: мг | Q189: мг | R189: мкг | S189: мкг | T189: мкг
B190: Итого за весь период | C190: =D21+D36+D51+D66+D80+D94+D108+D122+D138+D153+D168+D183 -> 274.65 | D190: 244.37 | E190: 824.44 | F190: 6591.55 | G190: 2.75 | H190: 2.89 | I190: 4268.54 | J190: 1.06 | K190: 220.08 | L190: 7038.32 | M190: 9253.73 | N190: 3038.77 | O190: 1250.62 | P190: 3966.38 | Q190: 63.48 | R190: 637.22 | S190: 217.97 | T190: 1595.48
B191: Среднее значение | C191: =C190/12 -> 22.89 | D191: =D190/12 -> 20.36 | E191: 68.70333333 | F191: =F190/12 -> 549.2958333 | G191: 0.23 | H191: 0.24 | I191: 355.7116667 | J191: 0.09 | K191: 18.34 | L191: 586.5266667 | M191: 771.1441667 | N191: 253.2308333 | O191: 104.2183333 | P191: 330.5316667 | Q191: 5.29 | R191: 53.10166667 | S191: 18.16416667 | T191: 132.9566667
B192: Содержание белков, жиров, углеводов в меню за период в % от калорийности | C192: 16.60 | D192: =D190*9/F190*100 -> 33.37 | E192: =E190*4*100/F190 -> 50.03
C194: СУММАРНЫЕ ОБЪЕМЫ БЛЮД ПО ПРИЕМАМ ПИЩИ (В ГРАММАХ)
B196: Возраст детей | C196: Горячий завтрак
B197: 7-11 лет | C197: =(C183+C168+C153+C138+C122+C108+C94+C80+C66+C51+C36+C21)/12 -> 552
B199: Овощи для салатов (морковь, лук, капуста, картофель) урожай 2022 года
